[Event "Super United Croatia GCT Blitz 2022"]
[Site "Zagreb"]
[Date "2022.07.24"]
[Round "11"]
[White "Mamedyarov, Shakhriyar"]
[Black "Dominguez Perez, Leinier"]
[Result "1/2-1/2"]
[ECO "A31"]
[WhiteElo "2759"]
[BlackElo "2754"]
[Annotator "TA"]
[PlyCount "162"]
[EventDate "2022.07.20"]
[EventType "tourn"]
[EventCountry "CRO"]
[SourceTitle "playchess.com"]
[Source "ChessBase"]
[SourceQuality "1"]
[TimeControl "300+2"]

{[%evp 9,162,0,0,0,0,0,5,0,0,0,0,0,0,0,0,0,0,0,0,0,0,0,0,0,0,-2,0,0,0,0,0,0,0,0,0,0,0,0,0,0,15,14,12,0,0,10,14,0,15,13,15,16,16,15,18,14,19,4,114,103,104,91,66,68,126,118,211,0,0,0,306,0,290,278,278,0,0,0,358,350,348,323,322,322,231,188,296,0,0,0,0,0,0,0,0,-16,-16,-79,0,0,0,0,0,0,0,0,50,55,55,55,81,55,54,54,52,45,45,45,45,8,8,8,8,8,8,0,80,80,80,0,0,0,0,0,0,0,0,0,0,0,0,0,0,0,0,0,0,0,0,0,0,0,0,0,0]} 1. c4 {[%emt 0:00:01]} c5 {[%emt 0:00:01]} 2. Nf3 {[%emt 0:00:01][%cal Bg1f3,Bf3d4,Bd4b5,Bb5c3,Bc3e4,Be4d6][%mdl 32]} Nf6 {[%emt 0:00:01]} 3. d4 {[%emt 0:00:00]} cxd4 {[%emt 0:00:03]} 4. Nxd4 {[%emt 0:00:01]} Nc6 {[%emt 0:00:01]} 5. g3 {[%emt 0:00:01]} e5 {[%emt 0:00:02]} 6. Nb5 {[%emt 0:00:02] A31: Symmetrical English: 2 Nf3 Nf6 3 d4.} Bb4+ {[%emt 0:00:02]} 7. N1c3 {[%emt 0:00:01]} d6 {[%emt 0:00:01]} 8. a3 {[%emt 0:00:01]} Bxc3+ {[%emt 0:00:01]} 9. Nxc3 {[%emt 0:00:01]} Be6 {[%emt 0:00:02]} 10. Bg5 {[%emt 0:00:02]} Bxc4 {[%emt 0:00:06]} 11. Bxf6 {[%emt 0:00:02]} Qxf6 {[%emt 0:00:01]} 12. Ne4 {[%emt 0:00:01][%csl LRd6,LRf6]} Qe6 {[%emt 0:00:02]} 13. Nxd6+ {[%emt 0:00:02]} Ke7 {[%emt 0:00:01]} 14. Nxc4 {[%emt 0:00:01]} Qxc4 {[%emt 0:00:02] [#]} 15. Rc1 $146 {[%emt 0:00:00]} ({Predecessor:} 15. Bg2 Rhd8 16. Qc1 Qxc1+ 17. Rxc1 Rd6 18. Bxc6 Rc8 19. f3 Rdxc6 20. Rxc6 Rxc6 21. Kd2 {½-½ (30) Liu,Y (2506)-Zhou,J (2625) Xingtai 2018}) 15... Qb5 {[%emt 0:00:06]} 16. Bh3 {[%emt 0:00:12]} Rhd8 {[%emt 0:00:05] Prevents Qd7+.} (16... Rad8 $5 17. Qc2 Nd4 18. Qc5+ Qxc5 19. Rxc5 Kf6 $11) 17. Qc2 {[%emt 0:00:02]} Nd4 {[%emt 0:00:11]} 18. Qc5+ {[%emt 0:00:06]} Qxc5 {[%emt 0:00:01]} 19. Rxc5 {[%emt 0:00:01]} Kf6 {[%emt 0:00:36]} 20. e3 {[%emt 0:00:57]} Nf3+ {[%emt 0:00:02]} 21. Ke2 {[%emt 0:00:02]} e4 {[%emt 0:00:01]} 22. Rc2 {[%emt 0:00:02] Prevents Rd2+.} Rd3 {[%emt 0:00:20]} 23. Bg4 {[%emt 0:00:54]} Ne5 {[%emt 0:00:02]} 24. Bc8 {[%emt 0:00:01]} Rb3 {[%emt 0:00:24]} 25. Rd1 {[%emt 0:00:22]} Nd3 {[%emt 0:00:20]} 26. Rdd2 {[%emt 0:00:57]} g6 {[%emt 0:00:23]} 27. Rc7 {[%emt 0:00:20]} Rb8 {[%emt 0:00:42]} 28. g4 {[%emt 0:00:08]} h6 {[%emt 0:00:25]} 29. h4 {[%emt 0:00:02]} a5 {[%emt 0:00:12]} 30. f4 {[%emt 0:00:12]} exf3+ $1 {[%emt 0:00:07]} 31. Kxf3 {[%emt 0:00:01]} b6 $1 {[%emt 0:00:50]} 32. Ke4 {[%emt 0:00:46]} Nc5+ {[%emt 0:00:04]} 33. Kd5 {[%emt 0:00:09] Threatening mate with Rf2+.} Rd3+ {[%emt 0:00:30]} (33... Rxe3 {is a self mate.} 34. Rf2+) (33... Kg7 $11) 34. Rxd3 $16 {[%emt 0:00:01]} Nxd3 {[%emt 0:00:01][%mdl 4096] Endgame KRB-KRN} 35. e4 {[%emt 0:00:01] Black must now prevent Kd4.} g5 {[%emt 0:00:15]} 36. h5 {[%emt 0:00:01]} Ne5 {[%emt 0:00:08]} (36... b5 $14) 37. Kd6 {[%emt 0:00:19] And now b3 would win. White is more active.} b5 {[%emt 0:00:01]} (37... a4 $16) 38. Kc5 $2 {[%emt 0:00:02]} ({White has to play} 38. Rc5 $1 $18) 38... b4 $11 {[%emt 0:00:01]} 39. a4 {[%emt 0:00:04]} Nd3+ $2 {[%emt 0:00:02][%mdl 8192]} (39... b3 $1 $11 {and Black is okay.}) 40. Kd5 $2 {[%emt 0:00:02]} ({White must play} 40. Kd4 $1 $18 Ne5 41. Rc5) 40... Rb6 {[%emt 0:00:02][%mdl 8192]} (40... Nxb2 $2 41. e5+ Kg7 42. e6 Rxc8 43. Rxc8 fxe6+ 44. Kxe6 $18) (40... b3 $1 $11) 41. b3 $18 {[%emt 0:00:04]} Rb8 {[%emt 0:00:03]} 42. Kd6 {[%emt 0:00:13]} Rb6+ $1 {[%emt 0:00:01]} 43. Kd5 {[%emt 0:00:01]} Rb8 $1 {[%emt 0:00:01]} 44. Kd4 {[%emt 0:00:02]} Ne5 {[%emt 0:00:02] Prevents Rc6+.} 45. Kc5 {[%emt 0:00:00]} Nd3+ {[%emt 0:00:05]} 46. Kc4 {[%emt 0:00:08]} Ne5+ {[%emt 0:00:01] [#]} 47. Kd4 $1 {[%emt 0:00:01]} Rb6 {[%emt 0:00:03]} (47... Ra8 {was necessary.} 48. Rc5 Nf3+ 49. Kd5 Nd2) 48. Bf5 $2 {[%emt 0:00:02]} (48. Rc5 $18 Nc6+ 49. Kc4) 48... Rd6+ $11 {[%emt 0:00:01]} 49. Kc5 {[%emt 0:00:01]} Rd3 {[%emt 0:00:01]} 50. Kb5 {[%emt 0:00:00]} Rxb3 {[%emt 0:00:01] Threatens to win with ...Rc3.} 51. Kxa5 {[%emt 0:00:01]} Rb1 {[%emt 0:00:01]} (51... Rc3 $5 52. Rb7 b3 $11) 52. Rb7 {[%emt 0:00:08]} b3 {[%emt 0:00:04]} 53. Rb6+ {[%emt 0:00:02]} (53. Ka6 $11 {remains equal.}) 53... Ke7 {[%emt 0:00:02]} ({Black should try} 53... Kg7 $17 {...Nc4+ is the strong threat.} 54. Ka6 b2) 54. Rb5 $1 {[%emt 0:00:00]} f6 {[%emt 0:00:02]} 55. Kb4 {[%emt 0:00:01]} b2 {[%emt 0:00:02]} 56. Kc3 {[%emt 0:00:01]} ({But not} 56. Ka3 Nc4+ 57. Kb3 Ra1 $17) 56... Ra1 {[%emt 0:00:04]} 57. Rb7+ {[%emt 0:00:01]} Kd6 {[%emt 0:00:01]} (57... Kf8 $11 58. Kxb2 Rxa4) 58. Kxb2 $14 {[%emt 0:00:01]} Rxa4 {[%emt 0:00:02]} 59. Rh7 $1 {[%emt 0:00:01]} Nxg4 {[%emt 0:00:03] Hoping for ...Ne3.} 60. Bxg4 {[%emt 0:00:01] aiming for Bf5.} Rxe4 {[%emt 0:00:00] KRB-KR} 61. Bf5 {[%emt 0:00:01]} Rf4 {[%emt 0:00:03]} 62. Bd3 {[%emt 0:00:09]} Ke5 {[%emt 0:00:01]} 63. Rxh6 {[%emt 0:00:01]} Rh4 {[%emt 0:00:02]} 64. Rh8 {[%emt 0:00:01] Strongly threatening h6.} g4 {[%emt 0:00:02]} 65. h6 {[%emt 0:00:03]} f5 {[%emt 0:00:02]} 66. h7 {[%emt 0:00:01] Re8+ would kill now.} Kf4 {[%emt 0:00:00]} 67. Bxf5 {[%emt 0:00:02]} g3 {[%emt 0:00:04]} (67... Kxf5 $11 {keeps the balance.} 68. Rf8+ Ke4 69. Re8+ Kf4 70. Rf8+ Ke4 71. Re8+ Kf3) 68. Rf8 {[%emt 0:00:02] White wants to mate with Bh3+.} g2 {[%emt 0:00:04] [#]} 69. Be4+ {[%emt 0:00:04]} Kxe4 $11 {[%emt 0:00:01] KR-KR. The position is equal.} 70. Rg8 {[%emt 0:00:02]} Kf3 {[%emt 0:00:01]} 71. Rf8+ {[%emt 0:00:01]} Ke2 {[%emt 0:00:00]} 72. Re8+ {[%emt 0:00:01]} Kf1 {[%emt 0:00:03]} 73. Rf8+ {[%emt 0:00:01]} Ke2 {[%emt 0:00:01]} 74. Re8+ {[%emt 0:00:01]} Kf3 {[%emt 0:00:04]} (74... Kf1 $5 75. Rf8+ Ke1 $11) 75. Rf8+ {[%emt 0:00:01]} Kg3 {[%emt 0:00:03]} 76. Rg8+ {[%emt 0:00:03]} Kf2 {[%emt 0:00:01]} 77. Rf8+ {[%emt 0:00:01]} Kg3 {[%emt 0:00:01]} 78. h8=Q {[%emt 0:00:05]} Rxh8 {[%emt 0:00:01]} 79. Rxh8 {[%emt 0:00:00]} g1=Q {[%emt 0:00:02] ( -> ...Qd4+)} 80. Rg8+ {[%emt 0:00:01]} Kf2 {[%emt 0:00:01]} 81. Rxg1 {[%emt 0:00:01]} Kxg1 {[%emt 0:00:01] White really could win this.  Weighted Error Value: White=0.23 (precise) /Black=0.23 (precise)} 1/2-1/2

[Event "Super United Croatia GCT Blitz 2022"]
[Site "Zagreb"]
[Date "2022.07.24"]
[Round "11"]
[White "Van Foreest, Jorden"]
[Black "Saric, Ivan"]
[Result "1-0"]
[ECO "B89"]
[WhiteElo "2678"]
[BlackElo "2680"]
[Annotator "TA"]
[PlyCount "75"]
[EventDate "2022.07.20"]
[EventType "tourn"]
[EventCountry "CRO"]
[SourceTitle "playchess.com"]
[Source "ChessBase"]
[SourceQuality "1"]
[TimeControl "300+2"]

{[%evp 14,75,30,0,8,9,16,0,0,0,0,1,11,8,19,9,5,0,0,0,0,0,0,0,0,0,22,23,29,6,0,0,45,-10,-12,-13,0,0,0,0,0,0,0,0,93,89,82,82,72,74,93,82,98,94,160,154,1253,1157,3401,85,29982,29983,29995,29996]} 1. e4 {[%emt 0:00:03]} c5 {[%emt 0:00:00]} 2. Nf3 {[%emt 0:00:02]} d6 {[%emt 0:00:01]} 3. d4 {[%emt 0:00:01]} cxd4 {[%emt 0:00:01]} 4. Nxd4 {[%emt 0:00:01]} Nf6 {[%emt 0:00:00]} 5. Bc4 {[%emt 0:00:01]} Nc6 {[%emt 0:00:03]} 6. Nc3 {[%emt 0:00:07]} e6 {[%emt 0:00:01]} 7. Be3 {[%emt 0:00:08]} a6 {[%emt 0:00:00]} 8. a4 {[%emt 0:00:08]} Bd7 {[%emt 0:00:05] B89: Sicilian: Velimirovic Attack.} 9. O-O {[%emt 0:00:04]} Be7 {[%emt 0:00:01]} 10. Re1 {[%emt 0:00:04]} O-O {[%emt 0:00:02] The position is equal.} 11. Nxc6 {[%emt 0:00:09]} Bxc6 {[%emt 0:00:05]} 12. a5 {[%emt 0:00:01]} Rc8 {[%emt 0:00:24]} 13. Bf1 {[%emt 0:00:07] [#]} Qc7 $146 {[%emt 0:00:13]} (13... Nxe4 $2 14. Nxe4 (14. Bb6 Nxc3 15. Bxd8 Nxd1 $11) 14... b5 15. f3 $18) ({Predecessor:} 13... d5 14. Bb6 Qd7 15. e5 Ne4 16. Nxe4 dxe4 17. Qg4 Bd5 18. Be3 Kh8 19. c3 Qc7 {1-0 (27) Halak,M (2186)-Urbanik,L (2020) Slovakia 2017}) 14. Ba7 {[%emt 0:00:08]} Rfe8 {[%emt 0:00:05]} 15. Qd2 {[%emt 0:00:09]} d5 {[%emt 0:00:20]} 16. Bb6 {[%emt 0:00:05]} Qb8 {[%emt 0:00:09][%cal Rd5e4]} 17. exd5 {[%emt 0:00:20]} Bxd5 {[%emt 0:00:32]} 18. Nxd5 {[%emt 0:00:12]} Nxd5 {[%emt 0:00:01]} 19. Bd4 $1 {[%emt 0:00:03]} Bf6 {[%emt 0:00:06]} 20. Bxf6 {[%emt 0:00:10]} Nxf6 {[%emt 0:00:01]} 21. g3 {[%emt 0:00:02]} Red8 {[%emt 0:00:01]} 22. Qe2 {[%emt 0:00:03]} Rc5 {[%emt 0:00:09]} 23. Bg2 {[%emt 0:00:10]} (23. c4 $14) 23... Qc7 $11 {[%emt 0:00:02][%csl LRa5,LRc2]} 24. c3 {[%emt 0:00:09]} h5 {[%emt 0:00:04]} 25. Ra4 {[%emt 0:00:14][%cal Ba1a4,Ba4b4,Bb4b5][%mdl 32]} Ng4 {[%emt 0:00:14]} 26. h3 {[%emt 0:00:21]} Nf6 {[%emt 0:01:02]} 27. Rb4 {[%emt 0:00:18] Against Rb5} Rb8 {[%emt 0:00:28]} 28. Ra1 {[%emt 0:00:26]} Rxa5 {[%emt 0:00:28]} (28... Nd5 $11 29. Rba4 Nf6) 29. Rxa5 $16 {[%emt 0:00:01]} Qxa5 {[%emt 0:00:01]} 30. Bxb7 {[%emt 0:00:14]} Qa1+ {[%emt 0:00:16] [#]} 31. Kg2 $1 {[%emt 0:00:04] White is more active.} a5 {[%emt 0:00:02]} 32. Rb5 {[%emt 0:00:13]} h4 {[%emt 0:00:00]} 33. g4 {[%emt 0:00:09]} Rd8 {[%emt 0:00:10]} ({Black should play} 33... Qc1) 34. g5 {[%emt 0:00:01]} Nd5 {[%emt 0:00:26]} (34... Nh7 $16) 35. Bxd5 $18 {[%emt 0:00:02][%cal Og5g6] Threatens to win with g6!} exd5 {[%emt 0:00:01]} 36. g6 $2 {[%emt 0:00:06]} (36. Qe7 $18 Rc8 37. g6) 36... fxg6 $2 {[%emt 0:00:10][%mdl 8192] [#]} (36... Qb1 $16) 37. Qe7 $1 {[%emt 0:00:01][%csl LRd8,LRh4]} Rf8 {[%emt 0:00:20]} 38. Rb7 {[%emt 0:00:01] Weighted Error Value: White=0.31/Black=0.35} 1-0

[Event "Super United Croatia GCT Blitz 2022"]
[Site "Zagreb"]
[Date "2022.07.24"]
[Round "12"]
[White "So, Wesley"]
[Black "Carlsen, Magnus"]
[Result "1/2-1/2"]
[ECO "C47"]
[WhiteElo "2773"]
[BlackElo "2864"]
[Annotator "TA"]
[PlyCount "121"]
[EventDate "2022.07.20"]
[EventType "tourn"]
[EventCountry "CRO"]
[SourceTitle "playchess.com"]
[Source "ChessBase"]
[SourceQuality "1"]
[TimeControl "300+2"]

{[%evp 16,121,0,0,0,7,12,12,10,10,6,8,7,6,8,11,5,7,7,0,0,-7,-8,-6,-6,-10,0,-48,-43,-50,-44,-64,-64,-69,-37,-35,-37,-22,-18,-59,-59,-59,-59,-69,-69,-69,-69,-69,-69,-86,-86,-86,-86,-86,-86,-86,-86,-86,-86,-86,-86,-86,-86,-86,0,-86,-86,-86,-86,-86,-86,-86,-86,-86,-86,-86,-86,-86,0,-86,0,-86,0,-86,-44,-44,-44,-44,-44,-44,-44,-44,-44,-44,-44,-44,-44,-44,-44,-44,-44,-44,-44,-44,0,-44,0,-44]} 1. e4 {[%emt 0:00:02]} e5 {[%emt 0:00:03]} 2. Nf3 {[%emt 0:00:02]} Nc6 {[%emt 0:00:01]} 3. Nc3 {[%emt 0:00:02]} Nf6 {[%emt 0:00:03]} 4. d4 {[%emt 0:00:01]} exd4 {[%emt 0:00:01]} 5. Nxd4 {[%emt 0:00:02]} Bb4 {[%emt 0:00:02]} 6. Nxc6 {[%emt 0:00:01]} bxc6 {[%emt 0:00:01]} 7. Bd3 {[%emt 0:00:02][%cal Bf1d3,Bd3e4,Be4c6][%mdl 32]} d5 {[%emt 0:00:02]} 8. Bd2 {[%emt 0:00:03]} O-O {[%emt 0:00:04]} 9. O-O {[%emt 0:00:02]} Bxc3 {[%emt 0:00:12] C47: Scotch Four Knights and Four Knights with 4 g3.} 10. Bxc3 {[%emt 0:00:06]} dxe4 $1 {[%emt 0:00:02][%mdl 4] is more profitable than 10...Nxe4 at the moment.} (10... Nxe4 {keeps more tension.} 11. Bxe4 dxe4 12. Qe2 Bf5) 11. Bxf6 {[%emt 0:00:02][%mdl 64] [#] Remove Defender} Qxf6 {[%emt 0:00:02]} 12. Bxe4 {[%emt 0:00:01]} Qxb2 {[%emt 0:00:02]} 13. Bxc6 {[%emt 0:00:02]} Rb8 {[%emt 0:00:01]} 14. Rb1 {[%emt 0:00:01]} Qxb1 {[%emt 0:00:02]} 15. Qxb1 {[%emt 0:00:01]} Rxb1 {[%emt 0:00:01]} 16. Rxb1 $11 {[%emt 0:00:02][%mdl 4096] Endgame KRB-KRB} Rd8 {[%emt 0:00:07] [#]} 17. h4 $146 {[%emt 0:00:49]} (17. Bf3 Kf8 18. Rb8 Re8 19. h4 Ba6 20. Rb3 Be2 21. Bxe2 Rxe2 22. Rc3 Re7 23. f3 {½-½ (52) So,W (2765)-Carlsen,M (2872) Wijk aan Zee 2020}) ({Predecessor:} 17. Bf3 Bf5 18. Rb7 Bxc2 19. Rxc7 Be4 20. Be2 g5 21. h3 a5 22. Ra7 Ra8 23. Re7 {½-½ (37) Andreikin,D (2724)-Rapport,R (2762) Belgrade 2022}) 17... Kf8 {[%emt 0:00:10]} 18. Rb3 {[%emt 0:00:43]} Ke7 {[%emt 0:00:37]} 19. Ra3 {[%emt 0:00:26]} Rd1+ {[%emt 0:01:40]} 20. Kh2 {[%emt 0:00:01]} Rd4 {[%emt 0:00:05]} 21. Rxa7 {[%emt 0:00:12]} (21. Kg3 $11) 21... Rxh4+ $15 {[%emt 0:00:02]} 22. Kg3 {[%emt 0:00:05]} Rc4 {[%emt 0:00:19][%csl LRc2,LRc6]} 23. Ba4 {[%emt 0:00:04]} Bf5 {[%emt 0:00:07]} 24. Ra8 {[%emt 0:00:56]} h5 {[%emt 0:00:16]} 25. Re8+ $1 {[%emt 0:00:26]} Kf6 {[%emt 0:00:25]} 26. Bb3 {[%emt 0:00:01]} Rc5 {[%emt 0:00:16]} 27. Re1 {[%emt 0:00:45]} Bxc2 {[%emt 0:00:44]} 28. Rc1 {[%emt 0:00:04]} Rg5+ {[%emt 0:00:02]} 29. Kh2 {[%emt 0:00:06]} Bxb3 {[%emt 0:00:02]} 30. axb3 {[%emt 0:00:01] KR-KR} c5 $1 {[%emt 0:00:02]} 31. Rc4 {[%emt 0:00:08]} Rf5 {[%emt 0:00:01]} 32. f3 {[%emt 0:00:12]} g5 {[%emt 0:00:02]} 33. b4 {[%emt 0:00:02]} cxb4 {[%emt 0:00:03]} 34. Rxb4 {[%emt 0:00:01]} Kg6 {[%emt 0:00:02]} 35. Rb6+ {[%emt 0:00:06]} Rf6 {[%emt 0:00:01]} 36. Rb5 {[%emt 0:00:01]} Ra6 {[%emt 0:00:02]} 37. Rb8 {[%emt 0:00:08]} f6 {[%emt 0:00:02]} 38. g3 {[%emt 0:00:07]} Ra2+ {[%emt 0:00:04]} 39. Kg1 {[%emt 0:00:01]} Ra6 {[%emt 0:00:15]} ({Black should try} 39... Re2 $17) 40. Rh8 {[%emt 0:00:05]} (40. Kh2 $1 $11) 40... Ra7 {[%emt 0:00:01]} 41. Rg8+ {[%emt 0:00:01]} Rg7 {[%emt 0:00:04]} 42. Rh8 {[%emt 0:00:02]} Rh7 {[%emt 0:00:01]} 43. Rg8+ {[%emt 0:00:02]} Kf5 {[%emt 0:00:01]} 44. Ra8 {[%emt 0:00:01]} Rb7 {[%emt 0:00:02]} 45. Rh8 {[%emt 0:00:06]} Kg6 {[%emt 0:00:03]} 46. Rg8+ {[%emt 0:00:01]} Rg7 {[%emt 0:00:01]} 47. Rh8 {[%emt 0:00:01]} Rh7 {[%emt 0:00:03]} 48. Rg8+ {[%emt 0:00:01]} Kf5 {[%emt 0:00:01]} 49. Ra8 $1 {[%emt 0:00:00]} h4 {[%emt 0:00:02]} 50. Ra5+ {[%emt 0:00:03]} Kg6 {[%emt 0:00:01]} 51. Kg2 {[%emt 0:00:07]} hxg3 {[%emt 0:00:08]} 52. Kxg3 {[%emt 0:00:01]} Rb7 {[%emt 0:00:02]} 53. Ra8 {[%emt 0:00:05]} Rb3 {[%emt 0:00:03]} 54. Rg8+ {[%emt 0:00:03]} Kf5 {[%emt 0:00:02]} 55. Ra8 {[%emt 0:00:01]} Re3 {[%emt 0:00:01]} 56. Ra5+ {[%emt 0:00:03]} Kg6 {[%emt 0:00:02]} 57. Ra8 {[%emt 0:00:01]} Re7 {[%emt 0:00:02]} 58. Rg8+ {[%emt 0:00:02]} Kf5 {[%emt 0:00:02]} 59. Ra8 {[%emt 0:00:01]} Kg6 {[%emt 0:00:03]} 60. Rg8+ {[%emt 0:00:02]} Kf5 {[%emt 0:00:01]} 61. Ra8 {[%emt 0:00:00] Weighted Error Value: White=0.06 (flawless) /Black=0.10 (very precise)} 1/2-1/2

[Event "Super United Croatia GCT Blitz 2022"]
[Site "Zagreb"]
[Date "2022.07.24"]
[Round "12"]
[White "Vachier-Lagrave, Maxime"]
[Black "Mamedyarov, Shakhriyar"]
[Result "1-0"]
[ECO "C77"]
[WhiteElo "2760"]
[BlackElo "2759"]
[Annotator "TA"]
[PlyCount "77"]
[EventDate "2022.07.20"]
[EventType "tourn"]
[EventCountry "CRO"]
[SourceTitle "playchess.com"]
[Source "ChessBase"]
[SourceQuality "1"]
[TimeControl "300+2"]

{[%evp 12,77,9,1,8,4,14,0,19,8,0,0,5,0,0,0,0,0,0,17,35,27,24,29,20,22,44,26,49,31,115,127,112,33,135,42,135,135,132,132,145,127,246,243,245,239,252,242,353,351,360,206,199,202,252,239,214,192,426,241,234,10,29977,6319,29991,29992,29992,29993]} 1. e4 {[%emt 0:00:01]} e5 {[%emt 0:00:01]} 2. Nf3 {[%emt 0:00:01]} Nc6 {[%emt 0:00:01]} 3. Bb5 {[%emt 0:00:02]} a6 {[%emt 0:00:02]} 4. Ba4 {[%emt 0:00:01]} Nf6 {[%emt 0:00:01]} 5. d3 {[%emt 0:00:01]} b5 {[%emt 0:00:01]} 6. Bb3 {[%emt 0:00:01]} Bc5 {[%emt 0:00:01]} 7. Nc3 {[%emt 0:00:01] 7.c3 is setting a new trend.} d6 {[%emt 0:00:02] C77: Ruy Lopez: 3...a6 4 Ba4 Nf6, unusual lines.} 8. Nd5 {[%emt 0:00:06]} h6 {[%emt 0:00:03] Inhibits Bg5.} 9. c3 {[%emt 0:00:03]} Rb8 {[%emt 0:00:03] The position is equal.} 10. O-O {[%emt 0:00:07]} O-O {[%emt 0:00:02]} 11. Re1 {[%emt 0:00:14]} Ba7 {[%emt 0:00:24]} 12. h3 {[%emt 0:00:51]} Re8 {[%emt 0:00:01]} 13. a4 {[%emt 0:00:03] [#] Hoping for axb5.} b4 {[%emt 0:00:03]} 14. a5 {[%emt 0:00:01] [#]} bxc3 $146 {[%emt 0:00:08]} ({Predecessor:} 14... Bd7 15. Bc4 bxc3 16. bxc3 Ra8 17. Nh2 Nxd5 18. Bxd5 Qf6 19. Rf1 Rad8 20. Bc4 Qg6 {1-0 (82) Melia,S (2362)-Karlovich,A (2198) Stockholm 2008}) 15. bxc3 {[%emt 0:00:04]} Nxd5 {[%emt 0:00:14]} 16. Bxd5 {[%emt 0:00:10]} Ne7 {[%emt 0:00:05]} 17. Bc4 {[%emt 0:00:01]} Ng6 {[%emt 0:00:04]} 18. d4 {[%emt 0:00:04]} Qf6 {[%emt 0:00:14]} 19. Qd3 {[%emt 0:00:33]} exd4 {[%emt 0:01:21]} 20. cxd4 {[%emt 0:00:02]} Nh4 {[%emt 0:00:42]} (20... c5 $14) 21. Nxh4 $16 {[%emt 0:00:06]} Qxh4 {[%emt 0:00:01]} 22. Ra2 {[%emt 0:00:41]} ({Don't play} 22. Qf3 $6 Re7 $14) (22. Be3 $16) 22... Rb4 {[%emt 0:00:40]} (22... Be6 $14) 23. Rae2 {[%emt 0:00:03]} ({Better is} 23. Bd2 $16 Rb8 24. Bc3 (24. Qf3 Qf6 $16)) 23... Qf6 {[%emt 0:00:12]} (23... Be6 $14 24. Bxe6 Rxe6) 24. Bd2 $36 {[%emt 0:00:28][%mdl 2048] Keeping Black busy.} Rb2 {[%emt 0:00:07]} 25. Bc3 {[%emt 0:00:07]} Rxe2 {[%emt 0:00:04]} 26. Rxe2 {[%emt 0:00:01]} Qg6 {[%emt 0:00:02]} (26... Bb7 $16 {might work better.} 27. Kh2 Qe7) 27. Bxa6 $18 {[%emt 0:00:12]} Bd7 {[%emt 0:00:02]} 28. Bc4 {[%emt 0:00:14]} c6 {[%emt 0:00:03]} 29. a6 {[%emt 0:00:09]} Bc8 {[%emt 0:00:02]} (29... Qg5 $142 30. Qf3 Rf8) 30. d5 {[%emt 0:00:22]} Bd7 {[%emt 0:00:21]} 31. dxc6 {[%emt 0:00:21]} (31. Rb2 $142 {Black must now prevent Rb7.} cxd5 32. Bxd5) 31... Bxc6 {[%emt 0:00:01]} 32. Bd5 {[%emt 0:00:02]} Rc8 {[%emt 0:00:02]} 33. Bb2 {[%emt 0:00:13]} Kh7 {[%emt 0:00:21]} 34. Kh2 {[%emt 0:00:12]} Qg5 $2 {[%emt 0:00:31]} (34... Bxd5 {was worth a try.} 35. Qxd5 Qe6) 35. Bxc6 {[%emt 0:00:07]} (35. e5+ $142 Qg6 36. Qxg6+ Kxg6 37. Rc2) 35... Rxc6 {[%emt 0:00:02]} 36. e5+ $2 {[%emt 0:00:01]} (36. Rc2 $18 Rxc2 37. Qxc2) 36... g6 $2 {[%emt 0:00:06][%mdl 8192] [#]} (36... Qg6 $11 37. Qxg6+ Kxg6) 37. Qf3 {[%emt 0:00:08]} Rc7 {[%emt 0:00:03]} 38. exd6 {[%emt 0:00:01]} Rd7 {[%emt 0:00:01]} 39. Re8 {[%emt 0:00:02] Weighted Error Value: White=0.34/Black=0.68} 1-0